lending/lending_fUSD_20250121
["ID","MTS","AMOUNT","RATE_DAILY","PERIOD"]
[349884263,1737477051472,-500.0,0.0002,2]
[349884264,1737477051482,-500.0,0.0002,2]
[349884265,1737477051491,-1800.0,0.0002,21]
[349884266,1737477051502,-1313.62,0.0002,2]
[349884267,1737477051511,-1003.95,0.0002,2]
[349884268,1737477051521,-255.2,0.0002,2]
[349884269,1737477051531,-500.0,0.0002,2]
[349884270,1737477051540,-874.3,0.0002,2]
[349884271,1737477051550,-671.72,0.0002,2]
[349884272,1737477051559,-5811.8,0.0002,2]
[349884273,1737477051569,-500.0,0.0002,2]
[349884274,1737477051579,-500.0,0.0002,2]
[349884275,1737477051589,-2583.31,0.0002,2]
[349884276,1737477051598,-1676.01,0.0002,2]
[349884277,1737477051607,-500.0,0.0002,2]
[349884278,1737477051617,-668.64,0.0002,2]
[349884279,1737477051627,-500.0,0.0002,2]
[349884280,1737477051637,-500.0,0.0002,2]
[349884281,1737477051647,-611.9995462,0.0002,2]
[349884282,1737477051657,-563.38,0.0002,2]
[349884283,1737477051666,-2301.07,0.0002,2]
[349884284,1737477051676,-500.0,0.0002,2]
[349884285,1737477051685,-892.19,0.0002,2]
[349884286,1737477051695,-293.67969425,0.0002,2]
[349884287,1737477051708,-894.49,0.0002,2]
[349884288,1737477051718,-5000.0,0.00020009,2]
[349884289,1737477051727,-2573.24,0.0002001,2]
[349884290,1737477051737,-150.0,0.00020037,2]
[349884291,1737477051747,-470.32340736,0.00020038,2]
[349884292,1737477051757,-12500.0,0.0002004,2]
[349884293,1737477051766,-12500.0,0.0002004,2]
[349884294,1737477051775,-150.0,0.00020046,2]
[349884295,1737477051786,-5000.0,0.00020057,2]
[349884296,1737477051796,-5000.0,0.00020064,2]
[349884297,1737477051806,-1051.05,0.00020067,7]
[349884298,1737477051816,-1051.05,0.00020067,7]
[349884299,1737477051826,-1051.05,0.00020067,7]
[349884300,1737477051837,-1051.05,0.00020067,7]
[349884301,1737477051846,-12500.0,0.0002008,2]
[349884302,1737477051857,-12500.0,0.0002008,2]
[349884303,1737477051867,-150.0,0.00020087,2]
[349884304,1737477051877,-1128.65,0.00020089,2]
[349884305,1737477051887,-714.75981,0.000201,2]
[349884306,1737477051897,-25000.0,0.00020102,2]
[349884307,1737477051910,-10000.0,0.00020107,2]
[349884308,1737477051922,-10000.0,0.00020107,2]
[349884309,1737477051932,-5000.0,0.00020119,2]
[349884310,1737477051942,-12500.0,0.0002012,2]
[349884311,1737477051953,-12500.0,0.0002012,2]
[349884312,1737477051963,-2986.65,0.00020137,2]
[349884313,1737477051973,-974.70670437,0.00020145,2]
[349884314,1737477052222,-4025.29329563,0.00020145,2]
[349884315,1737477052232,-150.0,0.00020146,2]
[349884316,1737477052242,-200.0,0.00020151,2]
[349884317,1737477052251,-1323.41581992,0.00020155,2]
[349884318,1737477052269,-491.255009,0.00020155,2]
[349884319,1737477052284,-635.85505977,0.00020155,2]
[349884320,1737477052296,-111.53411131,0.00020155,2]
[349884321,1737477052306,-223.62486869,0.0002016,2]
[349884322,1737477052317,-426.57846396,0.0002016,2]
[349884323,1737477052926,-500.0,0.00019178,2]
[349884324,1737477052936,-500.0,0.00019178,2]
[349884325,1737477052946,-369.52715498,0.00019178,2]
[349884326,1737477052968,-130.47284502,0.00019178,2]
[349884327,1737477052977,-418.79381865,0.00019178,2]
[349884328,1737477052989,-81.20618135,0.00019178,2]
[349884329,1737477052999,-500.0,0.00019178,2]
[349884330,1737477053009,-500.0,0.00019178,2]
[349884331,1737477053192,-500.0,0.00019451,2]
[349884332,1737477053206,-500.0,0.00019452,2]
[349884333,1737477053215,-500.0,0.00019452,2]
[349884334,1737477053224,-500.0,0.00019452,2]
[349884335,1737477053234,-500.0,0.00019452,2]
[349884336,1737477053243,-500.0,0.00019452,2]
[349884337,1737477053251,-200.60571768,0.00019452,2]
[349884338,1737477053263,-299.39428232,0.00019452,2]
[349884339,1737477053272,-150.0,0.00019563,2]
[349884340,1737477053282,-500.0,0.00019726,2]
[349884341,1737477053291,-500.0,0.00019726,2]
[349884342,1737477053300,-500.0,0.00019726,2]
[349884343,1737477053310,-480.89638466,0.00019726,2]
[349884344,1737477053319,-500.0,0.0002,2]
[349884345,1737477053328,-500.0,0.0002,2]
[349884346,1737477053337,-500.0,0.0002,2]
[349884347,1737477053346,-92726.98589344,0.00020073,2]
[349884348,1737477053409,-5920.28648634,0.00020073,2]
[349884349,1737477053419,-10513.85051939,0.00020073,2]
[349884350,1737477053430,-1005.38333253,0.00020073,2]
[349884351,1737477053445,-20919.01803834,0.00020073,2]
[349884352,1737477053459,-5497.224858,0.00020073,2]
[349884353,1737477053491,-227467.40909552,0.00020073,2]
[349884354,1737477053500,-11849.79666735,0.0002016,2]
[349884355,1737477053509,-150.0,0.00020184,2]
[349884356,1737477053519,-150.0,0.00020189,2]
[349884357,1737477053528,-150.0,0.00020199,2]
[349884358,1737477053537,-6961.26,0.000202,2]
[349884359,1737477053547,-11708.39916403,0.00020213,2]
[349884360,1737477053556,-30000.0,0.00020213,2]
[349884361,1737477053565,-150.0,0.00020227,2]
[349884362,1737477053574,-1000.0,0.00020237,2]
[349884363,1737477053583,-4969.57,0.00020265,2]
[349884364,1737477053593,-150.0,0.00020269,2]
[349884365,1737477053602,-1272.58,0.00020271,2]
[349884366,1737477053611,-500.0,0.00020273,2]
[349884367,1737477053620,-500.0,0.00020273,2]
[349884368,1737477053630,-500.0,0.00020273,2]
[349884369,1737477053640,-500.0,0.00020273,2]
[349884370,1737477053649,-500.0,0.00020273,2]
[349884371,1737477053658,-500.0,0.00020273,2]
[349884372,1737477053667,-500.0,0.00020273,2]
[349884373,1737477053677,-500.0,0.00020273,2]
[349884374,1737477053686,-467.41042999,0.00020273,2]
[349884375,1737477053695,-500.0,0.00020273,2]
[349884376,1737477053710,-500.0,0.00020273,2]
[349884377,1737477053719,-628.84671779,0.00020273,2]
[349884378,1737477053728,-500.0,0.00020273,2]
[349884379,1737477053738,-500.0,0.00020273,2]
[349884380,1737477053747,-500.0,0.00020273,2]
[349884381,1737477053757,-500.0,0.00020273,2]
[349884382,1737477053766,-500.0,0.00020273,2]
[349884383,1737477053775,-500.0,0.00020273,2]
[349884384,1737477053787,-500.0,0.00020273,2]
[349884385,1737477053797,-500.0,0.00020273,2]
[349884386,1737477053806,-514.25,0.00020273,2]
[349884387,1737477053816,-500.0,0.00020273,2]
[349884388,1737477053825,-500.0,0.00020273,2]
[349884389,1737477053835,-500.0,0.00020273,2]
[349884390,1737477053845,-500.0,0.00020273,2]
[349884391,1737477053854,-500.0,0.00020273,2]
[349884392,1737477053864,-500.0,0.00020273,2]
[349884393,1737477053873,-500.0,0.00020273,2]
[349884394,1737477053883,-500.0,0.00020273,2]
[349884395,1737477053893,-500.0,0.00020273,2]
[349884396,1737477053902,-500.0,0.00020273,2]
[349884397,1737477053911,-500.0,0.00020273,2]
[349884398,1737477053921,-500.0,0.00020273,2]
[349884399,1737477053930,-500.0,0.00020273,2]
[349884400,1737477053939,-500.0,0.00020273,2]
[349884401,1737477053949,-500.0,0.00020273,2]
[349884402,1737477053962,-510.78,0.00020273,2]
[349884403,1737477053972,-500.0,0.00020273,2]
[349884404,1737477053982,-369.09606204,0.00020273,2]
[349884405,1737477053992,-500.0,0.00020273,2]
[349884406,1737477054002,-614.79,0.00020273,2]
[349884407,1737477054011,-500.0,0.00020273,2]
[349884408,1737477054021,-500.0,0.00020273,2]
[349884409,1737477054030,-500.0,0.00020273,2]
[349884410,1737477054039,-536.77,0.00020273,2]
[349884411,1737477054048,-500.0,0.00020273,2]
[349884412,1737477054058,-500.0,0.00020273,2]
[349884413,1737477054067,-500.0,0.00020273,2]
[349884414,1737477054076,-500.0,0.00020273,2]
[349884415,1737477054085,-500.0,0.00020273,2]
[349884416,1737477054094,-500.0,0.00020273,2]
[349884417,1737477054103,-572.3,0.00020273,2]
[349884418,1737477054113,-540.57,0.00020273,2]
[349884419,1737477054123,-500.0,0.00020273,2]
[349884420,1737477054136,-542.72,0.00020273,2]
[349884421,1737477054146,-500.0,0.00020273,2]
[349884422,1737477054155,-597.04,0.00020273,2]
[349884423,1737477054164,-500.0,0.00020273,2]
[349884424,1737477054175,-500.0,0.00020273,2]
[349884425,1737477054184,-500.0,0.00020273,2]
[349884426,1737477054194,-500.0,0.00020273,2]
[349884427,1737477054205,-500.0,0.00020273,2]
[349884428,1737477054215,-500.0,0.00020273,2]
[349884429,1737477054224,-500.0,0.00020273,2]
[349884430,1737477054234,-500.0,0.00020273,2]
[349884431,1737477054244,-500.0,0.00020273,2]
[349884432,1737477054254,-500.0,0.00020273,2]
[349884433,1737477054263,-500.0,0.00020273,2]
[349884434,1737477054273,-500.0,0.00020273,2]
[349884435,1737477054283,-535.31,0.00020273,2]
[349884436,1737477054292,-500.0,0.00020273,2]
[349884437,1737477054302,-657.081719,0.00020273,2]
[349884438,1737477054311,-500.0,0.00020273,2]
[349884439,1737477054321,-500.0,0.00020273,2]
[349884440,1737477054331,-500.0,0.00020273,2]
[349884441,1737477054340,-582.06,0.00020273,2]
[349884442,1737477054349,-500.0,0.00020273,2]
[349884443,1737477054358,-509.866666,0.00020273,2]
[349884444,1737477054368,-500.0,0.00020273,2]
[349884445,1737477054378,-500.0,0.00020273,2]
[349884446,1737477054387,-500.0,0.00020273,2]
[349884447,1737477054397,-500.0,0.00020273,2]
[349884448,1737477054406,-500.0,0.00020273,2]
[349884449,1737477054416,-500.0,0.00020273,2]
[349884450,1737477054426,-500.0,0.00020273,2]
[349884451,1737477054436,-505.45124459,0.00020273,2]
[349884452,1737477054445,-500.0,0.00020273,2]
[349884453,1737477054458,-500.0,0.00020273,2]
[349884454,1737477054467,-500.0,0.00020273,2]
[349884455,1737477054477,-500.0,0.00020273,2]
[349884456,1737477054487,-500.0,0.00020273,2]
[349884457,1737477054497,-724.32,0.00020273,2]
[349884458,1737477054506,-500.0,0.00020273,2]
[349884459,1737477054516,-500.0,0.00020273,2]
[349884460,1737477054525,-500.0,0.00020273,2]
[349884461,1737477054534,-500.0,0.00020273,2]
[349884462,1737477054544,-317.91462701,0.00020273,2]
[349884463,1737477054553,-500.0,0.00020273,2]
[349884464,1737477054563,-500.0,0.00020273,2]
[349884465,1737477054572,-500.0,0.00020273,2]
[349884466,1737477054581,-500.0,0.00020273,2]
[349884467,1737477054590,-500.0,0.00020273,2]
[349884468,1737477054600,-500.0,0.00020273,2]
[349884469,1737477054609,-500.0,0.00020273,2]
[349884470,1737477054619,-500.0,0.00020273,2]
[349884471,1737477054628,-500.0,0.00020273,2]
[349884472,1737477054638,-500.0,0.00020273,2]
[349884473,1737477054647,-500.0,0.00020273,2]
[349884474,1737477054656,-500.0,0.00020273,2]
[349884475,1737477054666,-534.53186042,0.00020273,2]
[349884476,1737477054675,-500.0,0.00020273,2]
[349884477,1737477054684,-500.0,0.00020273,2]
[349884478,1737477054693,-500.0,0.00020273,2]
[349884479,1737477054704,-538.18,0.00020273,2]
[349884480,1737477054714,-500.0,0.00020273,2]
[349884481,1737477054723,-500.0,0.00020273,2]
[349884482,1737477054733,-500.0,0.00020273,2]
[349884483,1737477054743,-260.35314731,0.00020273,2]
[349884484,1737477054753,-500.0,0.00020273,2]
[349884485,1737477054762,-500.0,0.00020273,2]
[349884486,1737477054772,-554.59,0.00020273,2]
[349884487,1737477054781,-500.0,0.00020273,2]
[349884488,1737477054791,-500.0,0.00020273,2]
[349884489,1737477054800,-768.57,0.00020273,2]
[349884490,1737477054810,-513.08,0.00020273,2]
[349884491,1737477054819,-1117.69,0.00020273,2]
[349884492,1737477054828,-1145.36,0.00020273,2]
[349884493,1737477054838,-1478.46,0.00020273,2]
[349884494,1737477054848,-793.46,0.00020273,2]
[349884495,1737477054857,-2567.88,0.00020273,2]
[349884496,1737477054866,-500.0,0.00020273,2]
[349884497,1737477054876,-2268.25,0.00020273,2]
[349884498,1737477054885,-738.72,0.00020273,2]
[349884499,1737477054894,-668.49,0.00020273,2]
[349884500,1737477054903,-1239.98,0.00020273,2]
[349884501,1737477054913,-584.26,0.00020273,2]
[349884502,1737477054922,-1199.74,0.00020273,2]
[349884503,1737477054931,-814.42,0.00020273,2]
[349884504,1737477054941,-500.0,0.00020273,2]
[349884505,1737477054950,-500.0,0.00020273,2]
[349884506,1737477054962,-1180.79,0.00020273,2]
[349884507,1737477054972,-738.29,0.00020273,2]
[349884508,1737477054981,-1021.82,0.00020273,2]
[349884509,1737477054991,-2071.37,0.00020273,2]
[349884510,1737477055001,-745.65,0.00020273,2]
[349884511,1737477055012,-831.15,0.00020273,2]
[349884512,1737477055021,-671.62,0.00020273,2]
[349884513,1737477055031,-3229.15,0.00020273,2]
[349884514,1737477055040,-762.03,0.00020273,2]
[349884515,1737477055050,-500.0,0.00020273,2]
[349884516,1737477055060,-1135.16,0.00020273,2]
[349884517,1737477055069,-919.59,0.00020273,2]
[349884518,1737477055079,-1499.17,0.00020273,2]
[349884519,1737477055087,-425.75,0.00020273,2]
[349884520,1737477055097,-783.66,0.00020273,2]
[349884521,1737477055106,-500.0,0.00020273,2]
[349884522,1737477055118,-1128.29,0.00020273,2]
[349884523,1737477055127,-3766.79,0.00020273,2]
[349884524,1737477055136,-500.0,0.00020273,2]
[349884525,1737477055146,-500.0,0.00020273,2]
[349884526,1737477055155,-1006.04,0.00020273,2]
[349884527,1737477055165,-2620.51,0.00020273,2]
[349884528,1737477055174,-500.0,0.00020273,2]
[349884529,1737477055183,-500.0,0.00020273,2]
[349884530,1737477055194,-1151.57,0.00020273,2]
[349884531,1737477055204,-881.18,0.00020273,2]
[349884532,1737477055212,-500.0,0.00020273,2]
[349884533,1737477055222,-1114.11,0.00020273,2]
[349884534,1737477055231,-766.29,0.00020273,2]
[349884535,1737477055241,-1441.88,0.00020273,2]
[349884536,1737477055250,-748.12,0.00020273,2]
[349884537,1737477055261,-599.42482127,0.00020273,2]
[349884538,1737477055270,-2257.9,0.00020273,2]
[349884539,1737477055279,-500.0,0.00020273,2]
[349884540,1737477055289,-633.02,0.00020273,2]
[349884541,1737477055299,-500.0,0.00020273,2]
[349884542,1737477055308,-2032.02,0.00020273,2]
[349884543,1737477055318,-2364.46,0.00020273,2]
[349884544,1737477055328,-876.37,0.00020273,2]
[349884545,1737477055337,-1545.37,0.00020273,2]
[349884546,1737477055349,-500.0,0.00020273,2]
[349884547,1737477055358,-377.27,0.00020273,2]
[349884548,1737477055369,-3191.77,0.00020273,2]
[349884549,1737477055378,-605.27,0.00020273,2]
[349884550,1737477055387,-1179.69,0.00020273,2]
[349884551,1737477055397,-638.22,0.00020273,2]
[349884552,1737477055406,-500.0,0.00020273,2]
[349884553,1737477055416,-752.63,0.00020273,2]
[349884554,1737477055425,-1483.27,0.00020273,2]
[349884555,1737477055436,-1265.35,0.00020273,2]
[349884556,1737477055445,-3137.3,0.00020273,2]
[349884557,1737477055457,-747.65,0.00020273,2]
[349884558,1737477055466,-1937.57,0.00020273,2]
[349884559,1737477055475,-1040.18,0.00020273,2]
[349884560,1737477055485,-1723.07,0.00020273,2]
[349884561,1737477055494,-649.71,0.00020273,2]
[349884562,1737477055504,-1180.36,0.00020273,2]
[349884563,1737477055514,-500.0,0.00020273,2]
[349884564,1737477055523,-603.6,0.00020273,2]
[349884565,1737477055532,-1029.27,0.00020273,2]
[349884566,1737477055541,-500.0,0.00020273,2]
[349884567,1737477055551,-1082.54,0.00020273,2]
[349884568,1737477055561,-5615.7,0.00020273,2]
[349884569,1737477055570,-4584.63,0.00020273,2]
[349884570,1737477055579,-500.0,0.00020273,2]
[349884571,1737477055588,-1492.74,0.00020273,2]
[349884572,1737477055597,-1203.88,0.00020273,2]
[349884573,1737477055607,-1420.19,0.00020273,2]
[349884574,1737477055616,-1366.47,0.00020273,2]
[349884575,1737477055626,-1049.81,0.00020273,2]
[349884576,1737477055636,-2134.74,0.00020273,2]
[349884577,1737477055645,-1655.17,0.00020273,2]
[349884578,1737477055655,-500.0,0.00020273,2]
[349884579,1737477055665,-578.87210708,0.00020273,2]
[349884580,1737477055674,-755.87,0.00020273,2]
[349884581,1737477055684,-500.0,0.00020273,2]
[349884582,1737477055693,-1263.01,0.00020273,2]
[349884583,1737477055704,-500.0,0.00020273,2]
[349884584,1737477055714,-1043.95,0.00020273,2]
[349884585,1737477055723,-500.0,0.00020273,2]
[349884586,1737477055732,-2455.69,0.00020273,2]
[349884587,1737477055742,-500.0,0.00020273,2]
[349884588,1737477055752,-512.55,0.00020273,2]
[349884589,1737477055762,-792.37,0.00020273,2]
[349884590,1737477055771,-611.82,0.00020273,2]
[349884591,1737477055781,-1668.11,0.00020273,2]
[349884592,1737477055791,-500.0,0.00020273,2]
[349884593,1737477055801,-500.0,0.00020273,2]
[349884594,1737477055810,-850.0,0.00020273,2]
[349884595,1737477055820,-500.0,0.00020273,2]
[349884596,1737477055830,-848.82,0.00020273,2]
[349884597,1737477055840,-1140.79,0.00020273,2]
[349884598,1737477055850,-2272.73,0.00020273,2]
[349884599,1737477055860,-500.0,0.00020273,2]
[349884600,1737477055870,-5135.31,0.00020273,2]
[349884601,1737477055879,-2017.12,0.00020273,2]
[349884602,1737477055889,-500.0,0.00020273,2]
[349884603,1737477055898,-500.0,0.00020273,2]
[349884604,1737477055908,-500.0,0.00020273,2]
[349884605,1737477055917,-500.0,0.00020273,2]
[349884606,1737477055926,-612.05,0.00020273,2]
[349884607,1737477055936,-274.59498856,0.00020273,2]
[349884608,1737477055946,-1227.83,0.00020273,2]
[349884609,1737477055959,-1668.51,0.00020273,2]
[349884610,1737477055968,-500.0,0.00020273,2]
[349884611,1737477055978,-584.62,0.00020273,2]
[349884612,1737477055987,-500.0,0.00020273,2]
[349884613,1737477055997,-1728.52,0.00020273,2]
[349884614,1737477056007,-500.0,0.00020273,2]
[349884615,1737477056017,-499.56148504,0.00020273,2]
[349884616,1737477056026,-1313.62,0.00020273,2]
[349884617,1737477056036,-1003.95,0.00020273,2]
[349884618,1737477056045,-500.0,0.00020273,2]
[349884619,1737477056055,-1322.78,0.00020273,2]
[349884620,1737477056064,-874.3,0.00020273,2]
[349884621,1737477056075,-671.72,0.00020273,2]
[349884622,1737477056084,-5811.8,0.00020273,2]
[349884623,1737477056094,-500.0,0.00020273,2]
[349884624,1737477056103,-500.0,0.00020273,2]
[349884625,1737477056112,-2583.31,0.00020273,2]
[349884626,1737477056123,-1676.01,0.00020273,2]
[349884627,1737477056138,-500.0,0.00020273,2]
[349884628,1737477056149,-668.64,0.00020273,2]
[349884629,1737477056159,-500.0,0.00020273,2]
[349884630,1737477056170,-500.0,0.00020273,2]
[349884631,1737477056179,-563.38,0.00020273,2]
[349884632,1737477056188,-2301.07,0.00020273,2]
[349884633,1737477056198,-500.0,0.00020273,2]
[349884634,1737477056209,-892.19,0.00020273,2]
[349884635,1737477056219,-894.49,0.00020273,2]
[349884636,1737477056229,-500.0,0.00020273,2]
[349884637,1737477056239,-500.0,0.00020273,2]
[349884638,1737477056249,-150.0,0.00020275,2]
[349884639,1737477056260,-5000.0,0.00020277,2]
[349884640,1737477056269,-4345.76073164,0.00020279,2]
[349884641,1737477056278,-5000.0,0.00020288,2]
[349884642,1737477056289,-1000.0,0.00020291,2]
[349884643,1737477056298,-5000.0,0.00020295,2]
[349884644,1737477056308,-1858.0,0.000203,2]
[349884645,1737477056317,-150.0,0.00020315,2]
[349884646,1737477056326,-150.0,0.00020325,2]
[349884647,1737477056335,-1051.05,0.00020341,7]
[349884648,1737477056346,-1051.05,0.00020341,7]
[349884649,1737477056355,-25000.0,0.00020343,2]
[349884650,1737477056365,-470.32340736,0.00020348,2]
[349884651,1737477056374,-275.39,0.00020355,2]
[349884652,1737477056385,-150.0,0.00020357,2]
[349884653,1737477056395,-150.0,0.00020359,2]
[349884654,1737477056404,-150.0,0.00020379,2]
[349884655,1737477056414,-2477.76,0.000204,2]
[349884656,1737477056423,-150.0,0.00020401,2]
[349884657,1737477056432,-160.709,0.0002042,2]
[349884658,1737477056441,-1000.0,0.00020434,2]
[349884659,1737477056451,-150.0,0.00020437,2]
[349884660,1737477056464,-499.61,0.00020437,2]
[349884661,1737477056474,-150.0,0.00020448,2]
[349884662,1737477056483,-150.0,0.00020449,2]
[349884663,1737477056493,-5000.0,0.00020485,2]
[349884664,1737477056503,-2500.0,0.00020497,2]
[349884665,1737477056512,-3157.498176,0.000205,2]
[349884666,1737477056522,-500.0,0.00020521,2]
[349884667,1737477056532,-1000.0,0.00020526,2]
[349884668,1737477056542,-150.0,0.00020526,2]
[349884669,1737477056551,-1272.58,0.00020546,2]
[349884670,1737477056561,-150.0,0.00020546,2]
[349884671,1737477056571,-500.0,0.00020547,2]
[349884672,1737477056580,-500.0,0.00020547,2]
[349884673,1737477056589,-500.0,0.00020547,2]
[349884674,1737477056598,-500.0,0.00020547,2]
[349884675,1737477056609,-500.0,0.00020547,2]
[349884676,1737477056618,-500.0,0.00020547,2]
[349884677,1737477056627,-500.0,0.00020547,2]
[349884678,1737477056638,-500.0,0.00020547,2]
[349884679,1737477056647,-500.0,0.00020547,2]
[349884680,1737477056657,-500.0,0.00020547,2]
[349884681,1737477056667,-568.77092965,0.00020547,2]
[349884682,1737477056676,-500.0,0.00020547,2]
[349884683,1737477056685,-264.34926038,0.00020547,2]
[349884684,1737477056695,-514.25,0.00020547,2]
[349884685,1737477056707,-500.0,0.00020547,2]
[349884686,1737477056717,-500.0,0.00020547,2]
[349884687,1737477056726,-500.0,0.00020547,2]
[349884688,1737477056737,-500.0,0.00020547,2]
[349884689,1737477056747,-500.0,0.00020547,2]
[349884690,1737477056757,-500.0,0.00020547,2]
[349884691,1737477056766,-500.0,0.00020547,2]
[349884692,1737477056775,-337.83608324,0.00020547,2]
[349884693,1737477056786,-500.0,0.00020547,2]
[349884694,1737477056795,-500.0,0.00020547,2]
[349884695,1737477056805,-500.0,0.00020547,2]
[349884696,1737477056815,-500.0,0.00020547,2]
[349884697,1737477056825,-417.24242537,0.00020547,2]
[349884698,1737477056996,-500.0,0.00020547,2]
[349884699,1737477057009,-510.78,0.00020547,2]
[349884700,1737477057019,-500.0,0.00020547,2]
[349884701,1737477057029,-500.0,0.00020547,2]
[349884702,1737477057040,-614.79,0.00020547,2]
[349884703,1737477057051,-500.0,0.00020547,2]
[349884704,1737477057061,-500.0,0.00020547,2]
[349884705,1737477057072,-500.0,0.00020547,2]
[349884706,1737477057083,-536.77,0.00020547,2]
[349884707,1737477057094,-500.0,0.00020547,2]
[349884708,1737477057104,-500.0,0.00020547,2]
[349884709,1737477057117,-500.0,0.00020547,2]
[349884710,1737477057127,-500.0,0.00020547,2]
[349884711,1737477057137,-500.0,0.00020547,2]
[349884712,1737477057147,-500.0,0.00020547,2]
[349884713,1737477057157,-572.3,0.00020547,2]
[349884714,1737477057168,-540.57,0.00020547,2]
[349884715,1737477057179,-500.0,0.00020547,2]
[349884716,1737477057189,-542.72,0.00020547,2]
[349884717,1737477057198,-500.0,0.00020547,2]
[349884718,1737477057214,-597.04,0.00020547,2]
[349884719,1737477057224,-500.0,0.00020547,2]
[349884720,1737477057234,-500.0,0.00020547,2]
[349884721,1737477057243,-500.0,0.00020547,2]
[349884722,1737477057254,-500.0,0.00020547,2]
[349884723,1737477057263,-500.0,0.00020547,2]
[349884724,1737477057273,-500.0,0.00020547,2]
[349884725,1737477057283,-558.41617196,0.00020547,2]
[349884726,1737477057294,-500.0,0.00020547,2]
[349884727,1737477057303,-500.0,0.00020547,2]
[349884728,1737477057314,-500.0,0.00020547,2]
[349884729,1737477057324,-500.0,0.00020547,2]
[349884730,1737477057335,-500.0,0.00020547,2]
[349884731,1737477057345,-535.31,0.00020547,2]
[349884732,1737477057355,-500.0,0.00020547,2]
[349884733,1737477057365,-657.081719,0.00020547,2]
[349884734,1737477057374,-500.0,0.00020547,2]
[349884735,1737477057384,-500.0,0.00020547,2]
[349884736,1737477057394,-500.0,0.00020547,2]
[349884737,1737477057404,-500.0,0.00020547,2]
[349884738,1737477057414,-509.866666,0.00020547,2]
[349884739,1737477057424,-500.0,0.00020547,2]
[349884740,1737477057433,-500.0,0.00020547,2]
[349884741,1737477057443,-177.36878755,0.00020547,2]
[349884742,1737477057453,-500.0,0.00020547,2]
[349884743,1737477057466,-500.0,0.00020547,2]
[349884744,1737477057476,-500.0,0.00020547,2]
[349884745,1737477057487,-500.0,0.00020547,2]
[349884746,1737477057497,-500.0,0.00020547,2]
[349884747,1737477057507,-500.0,0.00020547,2]
[349884748,1737477057518,-500.0,0.00020547,2]
[349884749,1737477057527,-724.32,0.00020547,2]
[349884750,1737477057536,-500.0,0.00020547,2]
[349884751,1737477057546,-500.0,0.00020547,2]
[349884752,1737477057555,-500.0,0.00020547,2]
[349884753,1737477057565,-500.0,0.00020547,2]
[349884754,1737477057575,-500.0,0.00020547,2]
[349884755,1737477057585,-562.5,0.00020547,2]
[349884756,1737477057594,-500.0,0.00020547,2]
[349884757,1737477057603,-500.0,0.00020547,2]
[349884758,1737477057612,-289.81859509,0.00020547,2]
[349884759,1737477057623,-500.0,0.00020547,2]
[349884760,1737477057633,-500.0,0.00020547,2]
[349884761,1737477057643,-500.0,0.00020547,2]
[349884762,1737477057653,-500.0,0.00020547,2]